Workbook

Sheet HIST. OPERAÇÕES
B9: Histórico de Operações | E9: =COUNTIF(TB_HistoricoOperacoes[Ativo],"<>") -> 13
B10: Registro | C10: Data Entrada | D10: Corretora | E10: Nota | F10: Total da Nota | G10: Ativo | H10: C / V | I10: Qtde | J10: Vlr Entrada | K10: Total Ativo (E) | L10: % NC | M10: Resultado Esperado
B11: =ROW()-ROW(TB_HistoricoOperacoes[[#Headers],[Registro]]) -> 1 | C11: 44275 | D11: Modal Mais | E11: 1620 | F11: 5550 | G11: NTCO3 | H11: V | I11: 150 | J11: 37 | K11: =TB_HistoricoOperacoes[[#This Row],[Qtde]]*TB_HistoricoOperacoes[[#This Row],[Vlr Entrada]] -> 5550 | M11: 0.9999990291
B12: =ROW()-ROW(TB_HistoricoOperacoes[[#Headers],[Registro]]) -> 2 | C12: 44275 | D12: Modal Mais | E12: 1631 | F12: 5150 | G12: BBSS3 | H12: C | I12: 250 | J12: 20.6 | K12: =TB_HistoricoOperacoes[[#This Row],[Qtde]]*TB_HistoricoOperacoes[[#This Row],[Vlr Entrada]] -> 5150 | M12: 1
B13: =ROW()-ROW(TB_HistoricoOperacoes[[#Headers],[Registro]]) -> 3 | C13: 44272 | D13: Modal Mais | E13: 1620 | F13: 5150 | G13: TASA4 | H13: C | I13: 500 | J13: 10.3 | K13: =TB_HistoricoOperacoes[[#This Row],[Qtde]]*TB_HistoricoOperacoes[[#This Row],[Vlr Entrada]] -> 5150 | M13: 1
B14: =ROW()-ROW(TB_HistoricoOperacoes[[#Headers],[Registro]]) -> 4 | C14: 44271 | D14: Modal Mais | E14: 2119 | F14: 7800 | G14: NTCO3 | H14: V | I14: 200 | J14: 39 | K14: =TB_HistoricoOperacoes[[#This Row],[Qtde]]*TB_HistoricoOperacoes[[#This Row],[Vlr Entrada]] -> 7800 | M14: 1
B15: =ROW()-ROW(TB_HistoricoOperacoes[[#Headers],[Registro]]) -> 5 | C15: 44264 | D15: Rico | E15: 3037 | F15: 2412 | G15: VALE3 | H15: C | I15: 100 | J15: 24.12 | K15: =TB_HistoricoOperacoes[[#This Row],[Qtde]]*TB_HistoricoOperacoes[[#This Row],[Vlr Entrada]] -> 2412 | M15: 1
B16: =ROW()-ROW(TB_HistoricoOperacoes[[#Headers],[Registro]]) -> 6 | C16: 44264 | D16: XP | E16: 4112 | F16: 4892 | G16: VALE3 | H16: C | I16: 200 | J16: 24.46 | K16: =TB_HistoricoOperacoes[[#This Row],[Qtde]]*TB_HistoricoOperacoes[[#This Row],[Vlr Entrada]] -> 4892 | M16: 1
B17: =ROW()-ROW(TB_HistoricoOperacoes[[#Headers],[Registro]]) -> 7 | C17: 44263 | D17: Genial Investimentos | E17: 1620 | F17: 5150 | G17: GOAU4 | H17: C | I17: 200 | J17: 11.92 | K17: =TB_HistoricoOperacoes[[#This Row],[Qtde]]*TB_HistoricoOperacoes[[#This Row],[Vlr Entrada]] -> 2384 | M17: 0.4629126214
B18: =ROW()-ROW(TB_HistoricoOperacoes[[#Headers],[Registro]]) -> 8 | C18: 44263 | D18: Genial Investimentos | E18: 1620 | F18: 5150 | G18: ENBR3 | H18: C | I18: 100 | J18: 18.79 | K18: =TB_HistoricoOperacoes[[#This Row],[Qtde]]*TB_HistoricoOperacoes[[#This Row],[Vlr Entrada]] -> 1879 | M18: 0.3648543689
B19: =ROW()-ROW(TB_HistoricoOperacoes[[#Headers],[Registro]]) -> 9 | C19: 44263 | D19: Genial Investimentos | E19: 1620 | F19: 5150 | G19: PRFM3 | H19: C | I19: 100 | J19: 8.87 | K19: =TB_HistoricoOperacoes[[#This Row],[Qtde]]*TB_HistoricoOperacoes[[#This Row],[Vlr Entrada]] -> 887 | M19: 0.1722330097
B20: =ROW()-ROW(TB_HistoricoOperacoes[[#Headers],[Registro]]) -> 10 | C20: 44260 | D20: Modal Mais | E20: 1405 | F20: 1459 | G20: MRFG3 | H20: V | I20: 100 | J20: 14.59 | K20: =TB_HistoricoOperacoes[[#This Row],[Qtde]]*TB_HistoricoOperacoes[[#This Row],[Vlr Entrada]] -> 1459 | M20: 1
B21: =ROW()-ROW(TB_HistoricoOperacoes[[#Headers],[Registro]]) -> 11 | C21: 44259 | D21: Genial Investimentos | E21: 1405 | F21: 1467 | G21: MRFG3 | H21: V | I21: 100 | J21: 14.67 | K21: =TB_HistoricoOperacoes[[#This Row],[Qtde]]*TB_HistoricoOperacoes[[#This Row],[Vlr Entrada]] -> 1467 | M21: 1
B22: =ROW()-ROW(TB_HistoricoOperacoes[[#Headers],[Registro]]) -> 12 | C22: 44256 | D22: Clear | E22: 1728 | F22: 2922 | G22: MRFG3 | H22: V | I22: 200 | J22: 14.61 | K22: =TB_HistoricoOperacoes[[#This Row],[Qtde]]*TB_HistoricoOperacoes[[#This Row],[Vlr Entrada]] -> 2922 | M22: 1
B23: =ROW()-ROW(TB_HistoricoOperacoes[[#Headers],[Registro]]) -> 13 | C23: 44253 | D23: Genial Investimentos | E23: 2109 | F23: 4495.75 | G23: ENBR3 | H23: C | I23: 245 | J23: 18.35 | K23: =TB_HistoricoOperacoes[[#This Row],[Qtde]]*TB_HistoricoOperacoes[[#This Row],[Vlr Entrada]] -> 4495.75 | M23: 1
